bitfinex-derivatives/quotes_ETHF0:USTF0_20260308
["timestamp","ask_amount","ask_price","bid_price","bid_amount"]
[1773004539518,0.54586264,1945.8,1944.7,0.59502225]
[1773004539818,0.54586264,1945.8,1944.8,7.30902225]
[1773004540117,0.54586264,1945.8,1944.9,0.59502225]
[1773004540516,0.54586264,1945.8,1944.7,3.16469725]
[1773004540517,0.54586264,1945.8,1945.1,0.59502225]
[1773004540715,0.00580147,1945.8,1945.1,0.59502225]
[1773004541018,0.00580147,1945.8,1945.3,0.59502225]
[1773004541213,0.54006117,1946.1,1945.3,0.59502225]
[1773004541717,0.54006117,1946.1,1945.4,6.714]
[1773004542314,0.54566188,1946.1,1945.4,6.714]
[1773004542718,0.54566188,1946.1,1945.4,7.30902225]
[1773004544814,0.54566188,1946.1,1945.5,0.59502225]
[1773004545215,0.54566188,1946.1,1945.6,7.30802225]
[1773004545416,0.54566188,1946.1,1945.7,6.713]
[1773004545721,0.5332237,1946.1,1945.7,6.713]
[1773004546222,0.54006117,1946.3,1945.7,0.59502225]
[1773004546421,0.54006117,1946.3,1945.6,0.59502225]
[1773004546721,0.54006117,1946.3,1945.7,6.713]
[1773004547021,0.54006117,1946.3,1945.8,7.30802225]
[1773004547219,0.546429,1946.3,1945.8,0.59502225]
[1773004547518,0.546429,1946.3,1945.9,6.713]
[1773004547719,0.546429,1946.3,1945.9,6.71779227]
[1773004547916,0.00636783,1946.3,1946.0,0.59502225]
[1773004548120,0.00636783,1946.3,1945.9,7.31281452]
[1773004548314,0.54006117,1947.1,1946.0,0.59502225]
[1773004548921,0.54006117,1946.9,1946.0,0.59502225]
[1773004549313,0.5464174,1946.9,1946.0,0.59502225]
[1773004549913,0.54006117,1946.7,1946.0,0.59502225]
[1773004550919,0.54006117,1946.7,1945.9,0.00479227]
[1773004551120,0.54006117,1946.5,1945.9,0.00479227]
[1773004551423,0.54006117,1946.5,1946.0,7.30702225]
[1773004551622,0.54006117,1947.3,1946.4,0.59502225]
[1773004551816,0.54006117,1947.3,1946.5,6.712]
[1773004552017,0.79683117,1947.3,1946.5,7.30702225]
[1773004552218,0.5464174,1947.2,1946.6,0.59502225]
[1773004552827,0.00635623,1947.1,1946.6,0.59502225]
[1773004553028,0.0041986,1947.2,1946.6,0.59502225]
[1773004553217,0.0041986,1947.2,1946.8,0.59502225]
[1773004553425,0.54425977,1947.2,1946.7,7.30702225]
[1773004553934,0.54425977,1947.2,1946.8,0.59502225]
[1773004554131,0.54006117,1947.6,1946.8,0.59502225]
[1773004555128,0.5447439,1947.6,1946.8,0.59502225]
[1773004555535,0.79681117,1947.5,1946.9,6.712]
[1773004555834,0.54006117,1947.4,1947.0,0.59502225]
[1773004556432,0.79681117,1947.5,1947.0,0.59502225]
[1773004556835,0.54006117,1947.4,1947.1,6.711]
[1773004557437,0.5447439,1947.6,1947.1,7.30602225]
[1773004558034,0.00468273,1947.6,1947.2,0.59502225]
[1773004558634,0.54006117,1947.8,1947.2,0.59502225]
[1773004559636,0.54460562,1947.8,1947.2,0.59502225]
[1773004560238,0.00454445,1947.8,1947.2,0.59502225]
[1773004560441,0.54460562,1947.8,1947.2,0.59502225]
[1773004560739,0.54006117,1947.4,1946.7,0.59502225]
[1773004560936,0.54006117,1947.4,1946.8,6.711]
[1773004561133,0.54006117,1947.4,1946.8,7.30602225]
[1773004561334,0.25675,1947.5,1946.9,0.59502225]
[1773004561530,0.79681117,1947.5,1946.9,0.59502225]
[1773004561930,0.54460562,1947.8,1947.0,0.59502225]
[1773004562335,0.54460562,1947.8,1947.1,6.711]
[1773004562541,0.54460562,1947.8,1947.1,7.30602225]
[1773004562742,0.00454445,1947.8,1947.2,0.59502225]
[1773004563742,0.59184575,1948.2,1947.2,0.59502225]
[1773004564344,0.59184575,1948.4,1947.3,0.59072785]
[1773004564545,0.59184575,1948.2,1947.3,0.59630846]
[1773004564735,0.59184575,1948.0,1947.3,0.59630846]
[1773004564939,0.59184575,1948.0,1947.4,6.711]
[1773004565642,0.55509206,1947.8,1947.4,6.711]
[1773004565837,0.55509206,1947.6,1947.3,0.00558061]
[1773004566043,0.81181206,1947.7,1947.4,6.70541939]
[1773004566347,0.25672,1947.7,1947.4,6.70541939]
[1773004566845,0.81181206,1947.7,1947.4,6.70541939]
[1773004567643,0.55509206,1947.6,1947.3,0.00558061]
[1773004567842,0.81181206,1947.7,1947.3,7.29027284]
[1773004569440,0.25672,1947.7,1947.4,0.57369223]
[1773004570046,0.81181206,1947.7,1947.3,7.29027284]
[1773004570749,0.25672,1947.7,1947.4,0.57369223]
[1773004572151,0.25672,1947.7,1947.6,0.57369223]
[1773004572342,0.25672,1947.7,1947.6,6.711]
[1773004572549,0.55509206,1948.3,1947.7,0.57369223]
[1773004572743,0.81173206,1948.3,1947.7,0.57369223]
[1773004572946,0.55509206,1948.2,1947.8,6.711]
[1773004573142,0.81173206,1948.3,1947.9,0.57369223]
[1773004573347,0.25664,1948.3,1947.9,0.57369223]
[1773004575446,0.55509206,1948.2,1948.0,6.711]
[1773004575651,0.81173206,1948.3,1948.1,6.09539278]
[1773004575851,0.25664,1948.3,1948.1,0.57369223]
[1773004576055,0.00398427,1948.4,1948.1,0.57369223]
[1773004576255,0.55509206,1948.7,1948.1,0.57369223]
[1773004577249,0.56074954,1948.7,1948.1,0.57369223]
[1773004577952,0.55509206,1948.8,1948.1,0.57369223]
[1773004578151,1.40153465,1949.8,1947.4,0.57369223]
[1773004578152,0.55509206,1948.4,1947.4,0.57369223]
[1773004578355,0.55509206,1948.4,1947.3,0.00558061]
[1773004578356,0.55509206,1948.4,1947.6,0.57369223]
[1773004578550,0.25664,1948.3,1947.6,0.57369223]
[1773004578757,0.81167206,1948.8,1947.8,0.57369223]
[1773004578957,0.81707522,1948.8,1947.8,0.57369223]
[1773004580755,0.81707522,1948.8,1948.0,0.57369223]
[1773004580951,0.26198316,1948.8,1948.2,0.57369223]
[1773004584057,0.81707522,1948.8,1948.2,0.57369223]
[1773004584258,0.55509206,1948.7,1948.4,0.57369223]
[1773004584559,0.00540316,1948.8,1948.6,0.57369223]
[1773004584758,0.00540316,1948.8,1948.5,6.711]
[1773004584759,0.56049522,1948.8,1948.7,5.31264766]
[1773004584959,0.25659,1948.7,1948.0,0.60022054]
[1773004585162,0.25659,1948.7,1948.1,6.711]
[1773004585362,0.25659,1948.7,1948.1,7.31184563]
[1773004585958,0.25659,1948.7,1948.2,0.60084563]
[1773004586860,0.25659,1948.7,1948.2,6.712]
[1773004587863,0.25659,1948.7,1948.1,0.60627468]
[1773004593769,0.00540316,1948.8,1948.1,0.60627468]
[1773004594170,0.19507448,1949.2,1948.1,0.60627468]
[1773004594669,0.25659,1948.7,1948.1,0.60627468]
[1773004595271,0.26105885,1948.7,1948.1,0.60627468]
[1773004596074,0.21602545,1949.2,1948.1,0.60627468]
[1773004597173,0.22107064,1949.2,1948.1,0.60627468]
[1773004597573,0.22107064,1949.2,1948.1,0.00473072]
[1773004597574,0.21596688,1948.5,1948.1,0.00473072]
[1773004598472,0.21596688,1948.5,1948.1,0.59542231]
[1773004598670,0.25663,1948.4,1948.1,0.59542231]
[1773004599677,0.25665,1948.2,1947.7,0.59069159]
[1773004600276,0.25659,1948.7,1947.7,0.59069159]
[1773004600472,0.2118129,1949.1,1947.9,0.59069159]
[1773004600770,0.26157519,1949.2,1948.0,5.53518105]
[1773004600974,0.26157519,1949.2,1948.1,0.59069159]
[1773004601274,0.26157519,1949.2,1948.3,0.59069159]
[1773004601472,0.45111587,1949.1,1948.5,0.59069159]
[1773004601777,0.45111587,1949.1,1948.6,0.59069159]
[1773004602572,0.26157519,1949.2,1948.6,0.59069159]
[1773004603376,0.25655,1949.0,1948.6,0.59069159]
[1773004604977,0.25658,1948.8,1948.4,0.59069159]
[1773004605280,0.72076621,1948.8,1948.4,7.30369159]
[1773004606075,0.72076621,1948.8,1948.4,0.59069159]
[1773004606279,0.46605982,1948.7,1948.2,7.30369159]
[1773004606479,0.46605982,1948.7,1948.3,0.59069159]
[1773004608080,0.2566,1948.6,1948.3,0.59069159]
[1773004608279,0.72525684,1948.6,1948.0,0.59069159]
[1773004608582,0.25663,1948.4,1948.1,0.59069159]
[1773004608777,0.46865684,1948.7,1948.1,0.59069159]
[1773004609676,0.25663,1948.4,1948.1,0.59069159]
[1773004610982,0.80622344,1948.4,1947.9,0.59722307]
[1773004611278,0.25663,1948.4,1948.1,0.59069159]
[1773004616682,0.25663,1948.4,1948.1,0.58528842]
[1773004617184,0.25671,1947.8,1947.5,0.59069159]
[1773004617393,0.54959344,1948.3,1947.6,0.59069159]
[1773004618193,0.25671,1947.8,1947.6,0.59529756]
[1773004618394,0.26318107,1948.3,1947.6,0.59529756]
[1773004618691,0.81277451,1948.3,1947.6,0.59529756]
[1773004618889,0.80626344,1948.1,1947.6,0.59529756]
[1773004619791,0.25667,1948.1,1947.6,0.59529756]
[1773004620186,0.00653107,1948.3,1947.6,0.59529756]
[1773004620988,0.25669,1947.9,1947.6,0.00460597]
[1773004621194,0.25669,1947.9,1947.6,0.59529756]
[1773004621595,0.00653107,1948.3,1947.6,0.59529756]
[1773004621790,0.25665,1948.2,1947.6,0.59529756]
[1773004622191,0.00653107,1948.3,1947.6,0.59529756]
[1773004622492,0.25665,1948.2,1947.6,0.59529756]
[1773004622692,0.25665,1948.2,1947.8,0.59069159]
[1773004623094,0.84906942,1948.2,1947.8,0.59069159]
[1773004623295,0.25665,1948.2,1947.9,7.28925556]
[1773004624195,0.59241942,1948.1,1947.7,0.57425556]
[1773004624391,0.84912942,1947.8,1947.6,0.00460597]
[1773004624692,0.84914942,1947.6,1947.3,6.715]
[1773004624897,0.84914942,1947.6,1947.3,6.40589881]
[1773004625498,0.25673,1947.6,1947.4,0.57425556]
[1773004625796,0.59241942,1947.9,1947.4,0.57425556]
[1773004626197,0.59241942,1947.9,1947.3,6.41241936]
[1773004626387,0.59561012,1947.5,1947.3,6.41241936]
[1773004626593,0.85234012,1947.6,1947.3,6.41241936]
[1773004627496,0.85234012,1947.6,1947.3,6.96929938]
[1773004627796,0.85234012,1947.6,1947.3,0.56340057]
[1773004628489,0.59561012,1947.5,1947.3,0.00652055]
[1773004628693,0.59561012,1947.5,1947.2,6.715]
[1773004629096,0.59561012,1947.5,1947.2,7.27188002]
[1773004629290,0.85234012,1947.6,1947.2,7.27188002]
[1773004629696,0.85234012,1947.6,1947.2,7.27623389]
[1773004629891,0.25673,1947.6,1947.3,0.55688002]
[1773004630499,0.59561012,1947.3,1947.0,0.55688002]
[1773004630699,0.85237012,1947.4,1947.0,0.55688002]
[1773004631497,0.85237012,1947.4,1947.0,0.56165873]
[1773004633002,0.25676,1947.4,1947.0,0.56165873]
[1773004633993,0.59561012,1948.1,1947.0,0.56165873]
[1773004634199,0.85235012,1947.6,1947.0,0.56165873]
[1773004634395,0.59561012,1947.5,1947.0,0.56165873]
[1773004634700,0.59561012,1947.3,1947.0,0.56165873]
[1773004634901,0.59561012,1947.9,1947.0,7.27288002]
[1773004635302,0.85237012,1947.4,1947.0,7.27288002]
[1773004635899,0.85237012,1947.4,1947.0,7.27897613]
[1773004637099,0.59561012,1947.8,1947.0,6.72209611]
[1773004637606,0.59561012,1947.3,1947.0,6.72209611]
[1773004637903,0.85237012,1947.4,1947.0,7.0979138]
[1773004638900,0.59561012,1947.3,1947.0,7.0979138]
[1773004640000,3.16988441,1948.3,1947.1,0.37279428]
[1773004640001,0.60214119,1948.3,1947.1,0.37279428]
[1773004640305,0.25673,1947.6,1947.1,0.37279428]
[1773004640608,0.59561012,1947.5,1947.1,0.37279428]
[1773004641407,0.85234012,1947.6,1947.1,0.37279428]
[1773004641807,0.59561012,1947.5,1947.1,0.37279428]
[1773004645311,0.25673,1947.6,1947.1,0.37279428]
[1773004646708,0.59561012,1947.9,1947.1,0.37279428]
[1773004647309,0.59561012,1947.7,1947.1,0.37279428]
[1773004648311,0.85232012,1947.8,1947.1,0.37279428]
[1773004648613,0.59561012,1947.7,1947.1,0.37279428]
[1773004650609,0.59561012,1947.9,1947.1,0.37279428]
[1773004656824,0.59945734,1947.8,1947.1,0.37279428]
[1773004657718,0.59945734,1947.6,1947.0,7.06257002]
[1773004657921,0.59945734,1947.6,1947.1,0.34047391]
[1773004662233,0.59945734,1947.4,1947.0,0.00609611]
[1773004662526,0.59945734,1947.4,1947.0,0.35310844]
[1773004663427,0.59945734,1947.6,1947.0,0.35310844]
[1773004668431,0.59945734,1947.4,1947.0,6.11e-06]
[1773004674930,0.59945734,1947.4,1946.3,0.34384381]
[1773004675232,0.59945734,1947.2,1946.3,0.34384381]
[1773004675533,0.59945734,1947.2,1946.5,2.10938049]
[1773004675731,0.59945734,1947.2,1946.6,0.34075905]
[1773004675926,0.59945734,1947.2,1946.6,0.00582071]
[1773004677828,0.59945734,1947.2,1946.6,0.3511211]
[1773004680138,0.59945734,1947.0,1946.6,0.00582071]
[1773004680340,0.59945734,1946.4,1945.6,0.37059761]
[1773004680537,2.70883783,1946.2,1945.6,0.37059761]
[1773004680739,0.59945734,1946.2,1945.7,0.37059761]
[1773004681037,0.25691,1946.3,1945.2,8.82638049]
[1773004681038,0.59945734,1946.0,1945.5,0.37059761]
[1773004681239,0.60589756,1946.0,1945.5,0.37694021]
[1773004682637,0.59945734,1946.3,1945.7,0.3534354]
[1773004683640,0.60350411,1946.3,1945.7,0.3534354]
[1773004687547,0.58907374,1946.6,1945.7,0.3534354]
[1773004688548,0.59347469,1946.6,1945.7,0.3534354]
[1773004692344,0.58907374,1946.4,1945.7,0.3534354]
[1773004707250,0.54208004,1946.2,1945.5,0.3761265]
[1773004715662,0.54208004,1946.2,1945.7,0.36861404]
[1773004723166,0.54208004,1946.2,1945.8,0.36888105]
[1773004723477,0.54208004,1946.2,1945.7,6.718]
[1773004723478,0.00440095,1946.6,1946.1,0.36831464]
[1773004723673,0.57868777,1946.4,1945.7,6.718]
[1773004724278,0.57868777,1946.4,1945.7,7.08631464]
[1773004724676,0.57868777,1946.4,1945.8,0.36831464]
[1773004727583,0.58308872,1946.6,1945.9,0.36876887]
[1773004730180,0.57868777,1946.8,1946.2,0.36879893]
[1773004730780,0.57868777,1946.8,1946.3,0.54842635]
[1773004731387,0.58244692,1946.8,1946.3,0.54842635]
[1773004731883,0.57868777,1946.9,1946.3,0.54842635]
[1773004732085,0.57868777,1947.4,1946.3,0.54842635]
[1773004732489,0.57868777,1947.4,1946.2,6.718]
[1773004732490,0.57868777,1947.4,1946.5,0.54842635]
[1773004732979,0.58286762,1947.4,1946.5,0.54842635]
[1773004737693,0.57868777,1947.2,1946.5,0.54842635]
[1773004738087,0.57868777,1947.2,1946.3,0.54842635]
[1773004740696,0.57868777,1946.8,1946.2,6.718]
[1773004740886,0.57868777,1946.8,1946.2,7.26642635]
[1773004741392,0.57868777,1946.8,1946.3,0.54842635]
[1773004742090,0.57868777,1947.3,1946.4,0.54842635]
[1773004743686,0.57868777,1947.3,1946.7,0.54760758]
[1773004749299,0.55122773,1947.4,1946.7,0.54760758]
[1773004750502,0.00417985,1947.4,1946.7,0.54760758]
[1773004751796,0.55122773,1947.4,1946.7,0.54760758]
[1773004753599,0.55122773,1947.4,1946.8,0.54712853]
[1773004760607,0.54704788,1946.8,1946.1,0.54712853]
[1773004762712,0.54704788,1946.8,1946.3,0.54712853]
[1773004765610,0.54704788,1946.8,1946.5,0.54712853]
[1773004765807,0.54704788,1946.8,1946.4,0.54712853]
[1773004768806,0.54704788,1946.6,1946.0,2.65596792]
[1773004769002,0.54704788,1946.4,1945.8,9.37396792]
[1773004769207,0.54704788,1946.4,1945.9,0.54712853]
[1773004770209,0.54704788,1946.4,1945.9,0.54812853]
[1773004776809,0.57349485,1946.2,1945.9,0.001]
[1773004777116,0.57349485,1946.2,1945.9,0.57658458]
[1773004777609,0.57349485,1946.2,1945.9,0.001]
[1773004777809,0.25691,1946.3,1945.9,0.57658458]
[1773004778009,0.83040485,1946.3,1945.9,0.57658458]
[1773004780011,0.57349485,1946.7,1946.1,0.57558458]
[1773004780710,0.57349485,1946.7,1946.0,2.10883939]
[1773004780915,0.57349485,1946.7,1945.9,0.57658458]
[1773004781913,0.57349485,1946.7,1946.1,0.57558458]
[1773004782614,0.57349485,1946.7,1946.3,0.57558458]
[1773004784918,0.83034485,1946.8,1946.5,0.57558458]
[1773004785118,0.57349485,1946.7,1946.3,0.57558458]
[1773004786016,4.20084291,1948.1,1945.9,0.001]
[1773004786017,0.83028485,1947.2,1946.6,0.57558458]
[1773004786319,0.83028485,1947.2,1945.9,0.001]
[1773004786320,0.57349485,1947.1,1946.5,0.57558458]
[1773004796225,0.57349485,1947.1,1945.9,0.001]
[1773004796226,0.57349485,1947.1,1946.7,0.57558458]
[1773004796525,0.57349485,1947.1,1946.6,2.10883939]
[1773004796824,0.57349485,1947.1,1946.6,2.68442397]
[1773004797526,0.57349485,1947.1,1946.7,0.57558458]
[1773004798028,0.57349485,1947.1,1946.6,2.10883939]
[1773004798328,0.57349485,1947.1,1946.6,2.68442397]
[1773004799230,0.57349485,1947.1,1946.7,0.57558458]
[1773004799627,0.57349485,1947.1,1946.6,2.68442397]
[1773004800929,0.57349485,1947.1,1946.7,0.57558458]
[1773004801229,0.57349485,1947.1,1946.6,2.10883939]
[1773004801428,0.57349485,1947.1,1946.6,2.68442397]
[1773004801623,0.57349485,1947.1,1946.6,0.57558458]
[1773004803227,0.01653127,1947.2,1946.7,0.56004856]
[1773004803529,0.5457114,1947.3,1946.7,2.66888795]
[1773004804132,0.5457114,1947.3,1946.8,0.56004856]
[1773004804431,0.55110232,1947.3,1946.8,0.56004856]
[1773004805231,0.5457114,1947.1,1946.6,0.56004856]
[1773004812339,0.56795432,1946.9,1946.4,0.55489874]
[1773004813641,0.25681,1947.0,1946.6,0.55489874]
[1773004814043,0.25681,1947.0,1946.8,0.55489874]
[1773004814242,0.11868487,1947.0,1946.8,0.55489874]
[1773004818749,0.56795432,1947.2,1946.8,0.55489874]
[1773004823247,0.56795432,1947.2,1946.4,0.55489874]
[1773004823947,0.57334524,1947.3,1946.4,0.55489874]
[1773004826347,0.00539092,1947.3,1946.7,0.55489874]
[1773004826650,0.25675,1947.5,1946.7,0.55489874]
[1773004826852,0.56795432,1947.9,1947.0,0.55489874]
[1773004827647,0.57310886,1947.9,1947.0,0.55981364]
[1773004827851,0.57310886,1947.9,1947.3,0.55489874]
[1773004828653,0.56795432,1947.7,1947.0,0.55981364]
[1773004828953,0.00515454,1947.9,1947.0,0.55981364]
[1773004829149,0.57310886,1947.9,1947.1,0.55489874]
[1773004829449,0.00515454,1947.9,1947.4,0.55489874]
[1773004829654,0.57310886,1947.9,1947.0,2.11411871]
[1773004829855,0.57310886,1947.9,1947.1,0.55489874]
[1773004830451,0.25672,1947.7,1947.1,0.55489874]
[1773004830650,0.56795432,1947.6,1947.1,0.55489874]
[1773004833756,0.56795432,1947.6,1947.0,0.58700605]
[1773004836355,0.56795432,1947.6,1947.0,0.0049149]
[1773004836664,0.5902933,1947.4,1946.8,0.58209115]
[1773004837167,0.5902933,1947.2,1946.5,0.58209115]
[1773004837560,0.5902933,1947.2,1946.5,0.58672425]
[1773004839162,0.5902933,1947.0,1946.5,0.58672425]
[1773004839567,2.10920381,1947.5,1946.3,0.58209115]
[1773004839568,0.5902933,1946.8,1946.3,0.58209115]
[1773004840558,0.5902933,1946.8,1946.3,0.58756626]
[1773004841366,0.5902933,1946.8,1946.3,0.00547511]
[1773004841768,0.5902933,1946.8,1946.3,0.58756626]
[1773004841970,0.8471233,1946.9,1946.3,0.58756626]
[1773004842162,0.5902933,1946.8,1946.3,0.58756626]
[1773004845063,0.5902933,1947.1,1946.4,0.58209115]
[1773004846363,0.5902933,1946.9,1946.4,0.58209115]
[1773004847571,0.5902933,1947.4,1946.5,0.58209115]
[1773004848569,0.5902933,1947.2,1946.5,0.58209115]
[1773004850368,0.8470633,1947.3,1946.5,0.58209115]
[1773004851169,0.5902933,1947.7,1946.5,0.58209115]
[1773004851570,0.5902933,1947.7,1946.8,0.58209115]
[1773004853173,0.5902933,1947.5,1946.8,0.58209115]
[1773004854564,0.25673,1947.6,1946.8,0.58209115]
[1773004854767,0.8470233,1947.6,1946.8,0.58209115]
[1773004855573,0.8470233,1947.6,1946.9,0.58209115]
[1773004855874,0.5902933,1947.5,1946.9,0.58209115]
[1773004860166,0.8470233,1947.6,1946.9,0.58209115]
[1773004861075,0.5902933,1947.5,1946.9,0.58209115]
[1773004866775,0.56869042,1947.3,1946.9,0.58209115]
[1773004867079,0.56869042,1947.3,1946.5,0.56976096]
[1773004869273,0.56869042,1947.1,1946.5,0.56976096]
[1773004870079,0.25679,1947.2,1946.5,0.56976096]
[1773004870280,0.56869042,1947.6,1946.8,0.56976096]
[1773004870486,0.56869042,1947.6,1946.9,0.56976096]
[1773004872578,0.25673,1947.7,1947.1,2.10920381]
[1773004872783,0.56869042,1947.8,1947.2,0.56976096]
[1773004872982,0.00515454,1947.9,1947.2,0.56976096]
[1773004873186,0.57384496,1947.9,1947.2,0.56976096]
[1773004877588,0.57384496,1947.9,1947.4,0.56976096]
[1773004877786,0.56869042,1948.1,1947.6,0.56976096]
[1773004878788,0.57296248,1948.1,1947.6,0.56976096]
[1773004880094,0.00427206,1948.1,1947.6,0.56976096]
[1773004880286,0.00427206,1948.1,1947.8,0.56976096]
[1773004880496,0.82535042,1948.2,1947.8,0.5744927]
[1773004881493,0.26206182,1948.2,1947.8,0.5744927]
[1773004882695,0.00540182,1948.2,1947.8,0.5744927]
[1773004882898,0.56869042,1948.3,1947.8,0.5744927]
[1773004883900,0.57478302,1948.3,1947.8,0.5744927]
[1773004884307,0.57478302,1948.3,1947.9,2.67739928]
[1773004884505,0.57478302,1948.3,1947.9,0.56976096]
[1773004887106,0.57478302,1948.3,1948.0,0.56976096]
[1773004887308,0.56287854,1948.3,1948.0,0.56976096]
[1773004887707,0.56869042,1948.4,1948.0,0.56976096]
[1773004888307,0.56869042,1948.4,1947.9,2.67739928]
[1773004888608,0.57412861,1948.4,1947.9,0.56976096]
[1773004890106,0.57412861,1948.4,1948.0,0.56976096]
[1773004891809,0.57412861,1948.4,1947.9,2.67739928]
[1773004892005,0.57412861,1948.4,1947.9,0.56976096]
[1773004893011,0.57412861,1948.4,1947.9,2.67739928]
[1773004893509,0.58627654,1948.2,1947.5,2.68401929]
[1773004893709,0.58627654,1948.2,1947.6,0.57638097]
[1773004894505,0.58627654,1948.2,1947.6,0.58015911]
[1773004895610,0.58627654,1948.2,1947.6,0.00377814]
[1773004896007,0.58627654,1948.0,1947.6,0.00377814]
[1773004896406,0.58627654,1948.0,1947.5,0.10943234]
[1773004897408,0.58627654,1948.0,1947.5,0.11348628]
[1773004898716,0.58627654,1948.3,1947.9,0.57638097]
[1773004898910,0.58627654,1948.1,1947.6,0.57638097]
[1773004899110,0.58627654,1948.1,1947.5,0.58043491]
[1773004899307,0.58627654,1947.9,1947.5,0.00405394]
[1773004899811,0.58627654,1947.9,1947.5,0.58043491]
[1773004901312,0.58627654,1947.9,1947.5,0.00405394]
[1773004903818,0.58627654,1947.9,1947.2,0.57638097]
[1773004904018,0.58627654,1947.7,1947.0,0.57638097]
[1773004904814,0.58627654,1947.7,1947.0,0.58093995]
[1773004905620,0.58627654,1947.7,1947.4,0.57638097]
[1773004905820,0.84298654,1947.8,1947.4,0.57638097]
[1773004906422,0.58627654,1947.7,1947.4,0.57638097]
[1773004910523,0.84298654,1947.8,1947.4,0.57638097]
[1773004910722,0.58627654,1947.8,1947.4,0.57638097]
[1773004911322,0.58627654,1948.1,1947.5,0.57638097]
[1773004915827,0.58627654,1948.1,1947.7,0.57638097]
[1773004916823,0.84292654,1948.3,1947.7,0.57638097]
[1773004917022,0.58627654,1948.2,1947.7,0.57638097]
[1773004920727,0.58627654,1948.0,1947.2,0.57638097]
[1773004920927,0.58627654,1947.8,1947.0,0.58093995]
[1773004921126,2.69391486,1947.8,1947.0,0.00455898]
[1773004921428,0.58627654,1947.7,1947.0,0.58093995]
[1773004926835,0.58627654,1947.7,1947.1,0.55215758]
[1773004927036,0.84645275,1947.9,1947.3,0.55215758]
[1773004927235,0.58976275,1947.8,1947.3,0.55215758]
[1773004930632,0.58976275,1947.8,1947.5,0.55215758]
[1773004931138,0.58976275,1947.8,1947.4,0.55215758]
[1773004931638,0.25669,1947.9,1947.5,0.55215758]
[1773004931838,0.84645275,1947.9,1947.5,0.55215758]
[1773004932031,0.58976275,1947.8,1947.5,0.55215758]
[1773004932535,0.84645275,1947.9,1947.5,0.55215758]
[1773004933031,0.58976275,1947.8,1947.2,0.55215758]
[1773004933236,0.58976275,1947.8,1947.1,0.55215758]
[1773004933737,0.58976275,1947.6,1947.1,0.55215758]
[1773004934439,0.84648275,1947.7,1947.1,0.55215758]
[1773004934736,0.84648275,1947.7,1947.3,0.55215758]
[1773004937434,0.58976275,1947.6,1947.3,0.55215758]
[1773004938236,0.84648275,1947.7,1947.3,0.55215758]
[1773004938637,0.58976275,1947.6,1947.0,0.00455898]
[1773004938836,0.58976275,1947.6,1947.1,0.55215758]
[1773004944243,0.58976275,1948.2,1947.2,0.55215758]
[1773004944435,0.25667,1948.1,1947.2,0.55215758]
[1773004944638,0.58976275,1948.0,1947.2,0.55215758]
[1773004951344,0.58976275,1948.1,1947.2,0.55215758]
[1773004951550,0.58976275,1948.1,1947.1,0.55215758]
[1773004962654,0.55707395,1947.9,1947.1,0.55215758]
[1773004962956,0.55707395,1948.1,1947.4,0.55349699]
[1773004988785,0.5461917,1948.3,1947.7,0.58640974]
[1773004992679,0.5461917,1948.3,1947.6,2.10807965]
[1773004992879,0.5461917,1948.3,1947.6,0.58640974]
[1773004997679,0.5461917,1948.3,1947.7,2.10681291]
[1773004998283,0.5461917,1948.3,1947.7,2.69322265]
[1773004998475,0.5461917,1948.3,1947.8,0.58640974]
[1773005001079,0.5461917,1948.3,1947.9,2.69322265]
[1773005001280,0.5461917,1948.3,1947.9,0.58640974]
[1773005002986,0.5461917,1948.3,1947.9,2.69322265]
[1773005003384,0.5461917,1948.3,1948.0,0.58640974]
[1773005003787,0.5461917,1948.3,1947.9,2.69322265]
[1773005003990,0.5461917,1948.3,1947.9,0.58640974]
[1773005006090,0.5461917,1948.3,1947.9,2.69322265]
[1773005007289,0.5461917,1948.3,1947.8,0.58640974]
[1773005007495,0.5461917,1948.3,1947.7,0.58640974]
[1773005011390,0.5461917,1948.3,1947.6,0.58640974]
[1773005014097,0.5461917,1948.3,1947.6,0.55120966]
[1773005015699,0.5461917,1948.3,1947.5,0.55120966]
[1773005020002,2.1122511,1948.4,1947.3,0.55120966]
[1773005020003,0.58866404,1947.9,1947.3,0.55120966]
[1773005020203,0.58866404,1947.9,1947.2,0.55120966]
[1773005022996,0.58866404,1947.9,1947.6,0.55120966]
[1773005023198,0.25668,1948.0,1947.6,0.55120966]
[1773005023396,0.58866404,1947.9,1947.6,0.55120966]
[1773005025910,0.58866404,1947.9,1947.5,2.65802257]
[1773005026115,0.58866404,1947.9,1947.5,0.55120966]
[1773005028811,0.58866404,1947.9,1947.4,0.55120966]
[1773005032514,0.58866404,1947.9,1947.6,0.55120966]
[1773005036119,0.84530404,1948.3,1947.6,0.55120966]
[1773005036417,0.58866404,1948.2,1947.6,0.55120966]
[1773005036816,0.58866404,1948.2,1947.5,2.10681291]
[1773005037017,0.58866404,1948.2,1947.5,2.65802257]
[1773005040922,0.58866404,1948.2,1947.7,2.65802257]
[1773005041112,0.58866404,1948.2,1947.6,0.55120966]
[1773005043821,0.25664,1948.3,1948.0,0.5414129]
[1773005044326,0.85358702,1948.3,1948.0,0.5414129]
[1773005046827,0.57626444,1948.8,1948.3,0.57846127]
[1773005047021,0.57626444,1948.8,1948.5,0.57846127]
[1773005047521,0.83283444,1948.9,1948.5,0.57846127]
[1773005047725,0.83686038,1948.9,1948.5,0.58464317]
[1773005047924,0.57626444,1948.8,1948.5,0.58464317]
[1773005049325,0.83686038,1948.9,1948.5,0.58464317]
[1773005050926,0.58029038,1948.9,1948.5,0.58464317]
[1773005052722,0.57626444,1949.2,1948.5,0.58464317]
[1773005053626,0.0038859,1949.2,1948.7,0.57846127]
[1773005053829,0.0038859,1949.2,1948.9,0.57846127]
[1773005054326,0.57626444,1949.3,1948.9,0.57846127]
[1773005055122,0.57626444,1949.3,1948.5,0.0061819]
[1773005055123,0.57626444,1949.7,1949.1,0.57846127]
[1773005055328,0.58081804,1949.7,1949.1,0.57846127]
[1773005057224,0.58081804,1949.7,1949.3,0.57846127]
[1773005057529,0.25510513,1949.8,1949.3,0.57846127]
[1773005058427,0.25939128,1949.8,1949.3,0.57846127]
[1773005059623,0.00428615,1949.8,1949.5,0.57846127]
[1773005060922,0.57626444,1951.2,1949.5,0.57846127]
[1773005061130,0.57626444,1951.2,1950.5,0.57846127]
[1773005061331,0.57626444,1951.0,1950.1,0.57846127]
[1773005062030,0.58172203,1951.0,1950.1,0.58443238]
[1773005062632,0.00545759,1951.0,1950.2,0.57846127]
[1773005062828,0.00545759,1951.0,1950.5,0.57846127]
[1773005063131,0.57626444,1951.3,1950.8,0.57846127]
[1773005064129,0.58006044,1951.3,1950.8,0.57846127]
[1773005064521,0.003796,1951.3,1950.8,0.57846127]
[1773005064722,2.10307078,1951.8,1950.6,0.57846127]
[1773005064928,0.57626444,1951.7,1950.6,0.57846127]
[1773005065230,0.57626444,1951.7,1951.0,0.57846127]
[1773005065623,0.57626444,1951.7,1950.6,0.57846127]
[1773005065828,0.57626444,1951.6,1950.6,0.57846127]
[1773005069032,0.57626444,1951.4,1950.6,0.57846127]